Workbook

Sheet Applicant
A1: 2014 Burden Estimate for Value Added Producer Grant Program - 0570-0064 - 2014
A2: USDA Rural Business-Cooperative Service
A3: Section of Regs | B3: Title | C3: Form No. (if any) | D3: Estimated No. of Respondents | E3: Reports Filed Annually | F3: Total Annual Responses (D) X (E) | G3: Estimated Hours per Response | H3: Estimated Total Man Hours (F) X (G) | I3: Wage Class $/hr | J3: Total Cost to the Public (H)x(I)
A4: (A) | B4: (B) | C4: (C) | D4: (D) | E4: (E) | F4: (F) | G4: (G) | H4: (H) | I4: (I) | J4: (J)
C6: PAPERWORK REQUIREMENTS - FORMS
A7: 4284.931 | B7: Application for Federal Assistance (Common Form 4040-0004) | C7: SF-424 (4040-0004) | D7: 350 | E7: 1 | F7: 350 | G7: 1.00 | H7: =G7*F7 -> 350.00 | I7: $56.62 | J7: =H7*I7 -> $19,817.00
A8: 4284.951 | B8: Certification Regarding Debarment, Suspension, and Other Responsibility Matters - Primary Covered Transactions | C8: AD-1047 | D8: 118 | E8: 1 | F8: =E8*D8 -> 118 | G8: 0.25 | H8: =G8*F8 -> 29.50 | I8: $56.62 | J8: =H8*I8 -> $1,670.29
A9: 4284.951 | B9: Certification Regarding Debarment, Suspension, and Other Responsibility Matters - Lower-Tier Covered Transactions | C9: AD-1048 | D9: 118 | E9: 1 | F9: =E9*D9 -> 118 | G9: 0.25 | H9: =G9*F9 -> 29.50 | I9: $56.62 | J9: =H9*I9 -> $1,670.29
A10: 4284.951 | B10: Certification Regarding Drug-Free Workplace Requirements (Grants) | C10: AD-1049 | D10: 118 | E10: 1 | F10: =E10*D10 -> 118 | G10: 0.25 | H10: =G10*F10 -> 29.50 | I10: $56.62 | J10: =H10*I10 -> $1,670.29
B11: Subtotal | F11: =SUM(F7:F10) -> 704 | H11: =SUM(H7:H10) -> 438.50 | J11: =SUM(J7:J10) -> $24,827.87
A13: PAPERWORK REQUIREMENTS – NO FORMS
B14: Project Proposal - Applicants
A15: 4284.931 | B15: Proposal | C15: Written | D15: 200 | E15: 1 | F15: =D15*E15 -> 200 | G15: 76.00 | H15: =F15*G15 -> 15,200.00 | I15: $56.62 | J15: =+H15*I15 -> $860,624
A16: 4284.932 | B16: Simplified Applications | D16: 150 | E16: 1 | F16: =D16*E16 -> 150 | G16: 61.00 | H16: =F16*G16 -> 9,150.00 | I16: $56.62 | J16: =+H16*I16 -> $518,073
B17: Subtotal | D17: =SUM(D15:D16) -> 350 | F17: =SUM(F15:F16) -> 350 | H17: =SUM(H15:H16) -> 24,350.00 | J17: =SUM(J15:J16) -> $1,378,697
B19: Grantee Requirements
A20: 4284.951 | B20: Grant Agreement | C20: Written | D20: 118 | E20: 1 | F20: =D20*E20 -> 118 | G20: 1.00 | H20: =F20*G20 -> 118.00 | I20: $56.62 | J20: =+H20*I20 -> $6,681
A21: 4284.960 | B21: Performance Reports | C21: Written | D21: 118 | E21: 2 | F21: =D21*E21 -> 236 | G21: 9.00 | H21: =F21*G21 -> 2,124.00 | I21: $82.50 | J21: =+H21*I21 -> $175,230
A22: 4284.960 | B22: Final Report | C22: Written | D22: 118 | E22: 1 | F22: =D22*E22 -> 118 | G22: 85.00 | H22: =F22*G22 -> 10,030.00 | I22: $82.50 | J22: =+H22*I22 -> $827,475
A23: Dept Regs | B23: Recordkeeping | D23: 118 | E23: 1 | F23: =D23*E23 -> 118 | G23: 3.00 | H23: =F23*G23 -> 354.00 | I23: $29.60 | J23: =+H23*I23 -> $10,478
B24: Subtotal | F24: =SUM(F20:F23) -> 590 | H24: =SUM(H20:H23) -> 12,626.00 | J24: =SUM(J20:J23) -> $1,019,865
B26: GRAND TOTAL | F26: =F11+F17+F24 -> 1,644 | H26: =H11+H17+H24 -> 37,414.50 | J26: =J11+J17+J24 -> $2,423,389
B29: Forms Approved Under Other OMB Numbers
A30: 4284.931 | B30: Budget Information – Non-Construction | C30: SF-424A (4040-0006) | D30: 350 | E30: 1 | F30: 350 | G30: 3.00 | H30: =G30*F30 -> 1050.00
A31: 4284.931 | B31: Assurances – Non-Construction | C31: SF-424B (4040-0007) | D31: 350 | E31: 1 | F31: 350 | G31: 0.25 | H31: 87.50
A32: 4284.931 | B32: Federal Financial Report | C32: SF-425 (4040-0014) | D32: 118 | E32: 2 | F32: 236 | G32: 0.50 | H32: 118.00
A33: 4284.931 | B33: Assurance Agreements | C33: RD 400-4 (0575-0018) | D33: 118 | E33: 1 | F33: 118 | G33: 0.25 | H33: 29.50
A34: 4284.931 | B34: Request for Advance or Reimbursement | C34: SF-270 (4040-0012) | D34: 118 | E34: 12 | F34: =D34*E34 -> 1416 | G34: 1.00 | H34: 1416.00
A35: 4284.951 | B35: Disclosure of Lobbying Activities | C35: SF-LLL (4040-0013) | D35: 118 | E35: 1 | F35: 118 | G35: 0.25 | H35: 29.50
A36: 4284.951 | B36: Letter of Intent to Meet Conditions | C36: RD 1942-46 (0570-0061) | D36: 118 | E36: 1 | F36: =D36*E36 -> 118 | G36: 0.50 | H36: 59.00
B37: Request for Obligation of Funds | C37: RD-1940-1 (0570-0061) | D37: 118 | E37: 1 | F37: 118 | G37: 0.25 | H37: 29.50
B38: Request for Environmental Information | C38: RD-1940-20 (0575-0094) | D38: 118 | E38: 1 | F38: 118 | G38: 8.00 | H38: 944.00
B39: ACH Vendor/Miscellaneous Payment Enrollment | C39: SF-3881 (1510-0056) | D39: 118 | E39: 1 | F39: 118 | G39: 0.25 | H39: 29.50

Sheet Federal
A1: Burden Estimate for Value Added Producer Grant Program - 0570-0064 - 2014
A2: USDA Rural Business-Cooperative Service
A3: Section of Notice | B3: Form No. (if any) | C3: No. of Respondents | D3: Reports Filed Annually | E3: Total Annual Responses (C) x (D) | F3: Estimated No. of Manhours per response | G3: Estimated Total Manhours (E) x (F) | H3: Wage** Class | I3: Total Cost (G) x (H)
A4: (A) | B4: (B) | C4: (C) | D4: (D) | E4: (E) | F4: (F) | G4: (G) | H4: (H) | I4: (I)
A5: Annual Cost to the FEDERAL GOVERNMENT
A7: Application for the Value Added Producer Grant
A8: Receipt of Applications | C8: 350 | D8: 1 | E8: =C8*D8 -> 350 | F8: 0.1 | G8: =E8*F8 -> 35 | H8: $21.07 | I8: =G8*H8 -> $737
A9: Data Entry and Scanning of Applications | C9: 350 | D9: 1 | E9: =C9*D9 -> 350 | F9: 1 | G9: =E9*F9 -> 350 | H9: $21.07 | I9: =G9*H9 -> $7,375
A10: Conduct Eligibility Determinations | C10: 350 | D10: 1 | E10: =C10*D10 -> 350 | F10: 3 | G10: =E10*F10 -> 1050 | H10: $40.19 | I10: =G10*H10 -> $42,200
A12: Scoring Applications
A13: Posting application to secure website | C13: 350 | D13: 1 | E13: =C13*D13 -> 350 | F13: 0.1 | G13: =E13*F13 -> 35 | H13: $37.37 | I13: =G13*H13 -> $1,308
A14: Non-Federal reviewer evaluation | C14: 210 | D14: 2 | E14: 210 | F14: 3 | G14: =E14*F14 -> 630 | H14: $33.33 | I14: =G14*H14 -> $20,998
A15: State office evaluation | C15: 210 | D15: 1 | E15: =C15*D15 -> 210 | F15: 3 | G15: =E15*F15 -> 630 | H15: $37.37 | I15: =G15*H15 -> $23,543
A16: Calculate final scores | C16: 210 | D16: 1 | E16: =C16*D16 -> 210 | F16: 0.5 | G16: =E16*F16 -> 105 | H16: $44.43 | I16: =G16*H16 -> $4,665
A17: Perpare program summary | C17: 1 | D17: 1 | E17: =C17*D17 -> 1 | F17: 8 | G17: =E17*F17 -> 8 | H17: $44.43 | I17: =G17*H17 -> $355
A19: Grant Award
A20: Announce awards to public | C20: 118 | D20: 1 | E20: =C20*D20 -> 118 | F20: 1 | G20: =E20*F20 -> 118 | H20: $37.37 | I20: =G20*H20 -> $4,410
A21: Legal Document Preparation | C21: 118 | D21: 1 | E21: =C21*D21 -> 118 | F21: 1 | G21: =E21*F21 -> 118 | H21: $37.37 | I21: =G21*H21 -> $4,410
A22: Inform applicants of results | C22: 350 | D22: 1 | E22: =C22*D22 -> 350 | F22: 1 | G22: =E22*F22 -> 350 | H22: $37.37 | I22: =G22*H22 -> $13,080
A23: Appeals | C23: 15 | D23: 1 | E23: =C23*D23 -> 15 | F23: 20 | G23: =E23*F23 -> 300 | H23: $37.37 | I23: =G23*H23 -> $11,211
A25: Post Award Activities and Requirements
A26: Monitoring | C26: 118 | D26: 1 | E26: =C26*D26 -> 118 | F26: 36 | G26: =E26*F26 -> 4248 | H26: $37.37 | I26: =G26*H26 -> $158,748
A27: Administrative | C27: 118 | D27: 1 | E27: =C27*D27 -> 118 | F27: 3 | G27: =E27*F27 -> 354 | H27: $21.07 | I27: =G27*H27 -> $7,459
A29: TOTAL | G29: =SUM(G8:G27) -> 8,331 | I29: =SUM(I8:I28) -> $300,497
A31: ** $21.07 is the rest-of-the-US rate for a GS-7, step 5; $37.37 is the average rest-of-the-US rate for a GS-12, Step 5 and GS-13, step 5; $44.43 is the WDC rate for a GS-13, step 5. $33.33 is the hourly rate of non-Federal Reviewers.
